fUSD/lending_fUSD_20260404
["ID","MTS","AMOUNT","RATE_DAILY","PERIOD"]
[419676375,1775278272424,-500.0,0.00035835,9]
[419676376,1775278272433,-500.0,0.00035835,9]
[419676377,1775278272443,-500.0,0.00035835,9]
[419676378,1775278272452,-500.0,0.00035835,9]
[419676379,1775278272462,-934.37,0.00035835,9]
[419676380,1775278272471,-500.0,0.00035835,9]
[419676381,1775278272481,-500.0,0.00035835,9]
[419676382,1775278272490,-500.0,0.00035835,9]
[419676383,1775278272500,-168.66534045,0.00035835,9]
[419676384,1775278272510,-500.0,0.00035835,9]
[419676385,1775278272520,-500.0,0.00035835,9]
[419676386,1775278272529,-500.0,0.00035835,9]
[419676387,1775278272540,-500.0,0.00035835,9]
[419676388,1775278272550,-500.0,0.00035835,9]
[419676389,1775278272560,-500.0,0.00035835,9]
[419676390,1775278272570,-500.0,0.00035835,9]
[419676391,1775278272580,-500.0,0.00035835,9]
[419676392,1775278272589,-500.0,0.00035835,9]
[419676393,1775278272600,-500.0,0.00035835,9]
[419676394,1775278272609,-500.0,0.00035835,9]
[419676395,1775278272619,-743.05,0.00035835,9]
[419676396,1775278272629,-500.0,0.00035835,9]
[419676397,1775278272639,-500.0,0.00035835,9]
[419676398,1775278272648,-500.0,0.00035835,9]
[419676399,1775278272658,-500.0,0.00035835,9]
[419676400,1775278272668,-500.0,0.00035835,9]
[419676401,1775278272678,-500.0,0.00035835,9]
[419676402,1775278272687,-500.0,0.00035835,9]
[419676403,1775278272697,-1274.67,0.00035835,9]
[419676404,1775278272707,-500.0,0.00035835,9]
[419676405,1775278272716,-709.22,0.00035835,9]
[419676406,1775278272727,-1164.93,0.00035835,9]
[419676407,1775278272736,-500.0,0.00035835,9]
[419676408,1775278272746,-500.0,0.00035835,9]
[419676409,1775278272755,-1884.9,0.00035835,9]
[419676410,1775278272765,-500.0,0.00035835,9]
[419676411,1775278272774,-500.0,0.00035835,9]
[419676412,1775278272785,-500.0,0.00035835,9]
[419676413,1775278272794,-593.37,0.00035835,9]
[419676414,1775278272804,-500.0,0.00035835,9]
[419676415,1775278272814,-3684.53,0.00035835,9]
[419676416,1775278272824,-500.0,0.00035835,9]
[419676417,1775278272834,-1141.03,0.00035835,9]
[419676418,1775278272844,-500.0,0.00035835,9]
[419676419,1775278272854,-500.0,0.00035835,9]
[419676420,1775278272863,-500.0,0.00035835,9]
[419676421,1775278272873,-500.0,0.00035835,9]
[419676422,1775278272883,-735.78,0.00035835,9]
[419676423,1775278272892,-500.0,0.00035835,2]
[419676424,1775278272902,-500.0,0.00035835,9]
[419676425,1775278272912,-500.0,0.00035835,9]
[419676426,1775278272921,-500.0,0.00035835,9]
[419676427,1775278272931,-914.08,0.00035835,9]
[419676428,1775278272943,-500.0,0.00035835,9]
[419676429,1775278272955,-2383.6,0.00035835,9]
[419676430,1775278272966,-500.0,0.00035835,9]
[419676431,1775278272977,-500.0,0.00035835,9]
[419676432,1775278272987,-500.0,0.00035835,9]
[419676433,1775278272998,-907.86,0.00035835,9]
[419676434,1775278273007,-902.05,0.00035835,9]
[419676435,1775278273017,-1126.74,0.00035835,9]
[419676436,1775278273027,-500.0,0.00035835,9]
[419676437,1775278273037,-500.0,0.00035835,9]
[419676438,1775278273047,-500.0,0.00035835,9]
[419676439,1775278273057,-500.0,0.00035835,9]
[419676440,1775278273068,-500.0,0.00035835,9]
[419676441,1775278273078,-500.0,0.00035835,9]
[419676442,1775278273088,-500.0,0.00035835,9]
[419676443,1775278273099,-1098.55,0.00035835,9]
[419676444,1775278273109,-500.0,0.00035835,9]
[419676445,1775278273119,-500.0,0.00035835,9]
[419676446,1775278273129,-552.62,0.00035835,9]
[419676447,1775278273140,-614.06,0.00035835,9]
[419676448,1775278273150,-500.0,0.00035835,9]
[419676449,1775278273159,-500.0,0.00035835,9]
[419676450,1775278273169,-500.0,0.00035835,9]
[419676451,1775278273179,-2086.14,0.00035835,9]
[419676452,1775278273189,-531.68,0.00035835,9]
[419676453,1775278273199,-583.97786153,0.00035835,9]
[419676454,1775278273209,-2760.69,0.00035835,9]
[419676455,1775278273219,-517.96,0.00035835,9]
[419676456,1775278273230,-1613.95,0.00035835,9]
[419676457,1775278273240,-500.0,0.00035835,9]
[419676458,1775278273455,-500.0,0.00035835,9]
[419676459,1775278273466,-1221.12,0.00035835,9]
[419676460,1775278273477,-500.0,0.00035835,9]
[419676461,1775278273487,-500.0,0.00035835,9]
[419676462,1775278273498,-694.19,0.00035835,9]
[419676463,1775278273508,-500.0,0.00035835,9]
[419676464,1775278273517,-500.0,0.00035835,9]
[419676465,1775278273528,-500.0,0.00035835,9]
[419676466,1775278273538,-2874.35,0.00035835,9]
[419676467,1775278273548,-3664.3,0.00035835,2]
[419676468,1775278273559,-1995.89,0.00035835,9]
[419676469,1775278273569,-500.0,0.00035835,9]
[419676470,1775278273578,-500.0,0.00035835,9]
[419676471,1775278273588,-500.0,0.00035835,9]
[419676472,1775278273598,-500.0,0.00035835,9]
[419676473,1775278273608,-500.0,0.00035835,9]
[419676474,1775278273618,-1104.72,0.00035835,9]
[419676475,1775278273629,-560.5,0.00035835,9]
[419676476,1775278273638,-1052.25,0.00035835,9]
[419676477,1775278273649,-1547.37,0.00035835,9]
[419676478,1775278273659,-643.00750457,0.00035835,9]
[419676479,1775278273669,-810.03,0.00035835,9]
[419676480,1775278273679,-500.0,0.00035835,9]
[419676481,1775278273688,-500.0,0.00035835,9]
[419676482,1775278273698,-500.0,0.00035835,9]
[419676483,1775278273708,-473.36829914,0.00035835,9]
[419676484,1775278273718,-500.0,0.00035835,9]
[419676485,1775278273729,-500.0,0.00035835,9]
[419676486,1775278273739,-1242.53,0.00035835,9]
[419676487,1775278273750,-500.0,0.00035835,9]
[419676488,1775278273760,-2761.74,0.00035835,9]
[419676489,1775278273770,-300.0,0.00035835,2]
[419676490,1775278273780,-398.15085794,0.00035835,9]
[419676491,1775278273790,-500.0,0.00035835,9]
[419676492,1775278273801,-500.0,0.00035835,9]
[419676493,1775278273811,-1462.79,0.00035835,9]
[419676494,1775278273821,-500.0,0.00035835,9]
[419676495,1775278273831,-500.0,0.00035835,9]
[419676496,1775278273840,-1858.66,0.00035835,9]
[419676497,1775278273851,-993.37,0.00035835,9]
[419676498,1775278273860,-500.0,0.00035835,9]
[419676499,1775278273870,-500.0,0.00035835,9]
[419676500,1775278273880,-500.0,0.00035835,9]
[419676501,1775278273890,-2259.23,0.00035835,9]
[419676502,1775278273900,-500.0,0.00035835,9]
[419676503,1775278273910,-1469.43,0.00035835,9]
[419676504,1775278273920,-703.63,0.00035835,9]
[419676505,1775278273930,-895.49,0.00035835,9]
[419676506,1775278273940,-504.82,0.00035835,9]
[419676507,1775278273950,-500.0,0.00035835,9]
[419676508,1775278273960,-500.0,0.00035835,9]
[419676509,1775278273969,-2454.96,0.00035835,9]
[419676510,1775278273979,-2075.53,0.00035835,9]
[419676511,1775278273989,-2974.27,0.00035835,9]
[419676512,1775278273999,-164.76410437,0.00035835,9]
[419676513,1775278274008,-578.41843357,0.00035835,9]
[419676514,1775278274018,-500.0,0.00035835,9]
[419676515,1775278274028,-2177.44,0.00035835,9]
[419676516,1775278274038,-500.0,0.00035835,9]
[419676517,1775278274047,-1955.54,0.00035835,9]
[419676518,1775278274057,-783.24,0.00035835,9]
[419676519,1775278274066,-500.0,0.00035835,9]
[419676520,1775278274076,-630.24,0.00035835,9]
[419676521,1775278274087,-500.0,0.00035835,9]
[419676522,1775278274097,-500.0,0.00035835,9]
[419676523,1775278274107,-1119.73,0.00035835,9]
[419676524,1775278274117,-500.0,0.00035835,9]
[419676525,1775278274127,-2370.68,0.00035835,9]
[419676526,1775278274136,-368.52358854,0.00035835,9]
[419676527,1775278274146,-1210.79,0.00035835,9]
[419676528,1775278274155,-1053.01,0.00035835,9]
[419676529,1775278274165,-2609.67,0.00035835,9]
[419676530,1775278274174,-500.0,0.00035835,9]
[419676531,1775278274184,-1493.22,0.00035835,9]
[419676532,1775278274194,-500.0,0.00035835,9]
[419676533,1775278274203,-1960.81,0.00035835,9]
[419676534,1775278274213,-1424.16,0.00035835,9]
[419676535,1775278274223,-3408.68,0.00035835,9]
[419676536,1775278274232,-500.0,0.00035835,9]
[419676537,1775278274242,-2300.16,0.00035835,9]
[419676538,1775278274252,-500.0,0.00035835,5]
[419676539,1775278274261,-500.0,0.00035835,9]
[419676540,1775278274270,-500.0,0.00035835,9]
[419676541,1775278274280,-500.0,0.00035835,9]
[419676542,1775278274290,-500.0,0.00035835,9]
[419676543,1775278274302,-500.0,0.00035835,9]
[419676544,1775278274311,-500.0,0.00035835,9]
[419676545,1775278274322,-500.0,0.00035835,9]
[419676546,1775278274332,-500.0,0.00035835,9]
[419676547,1775278274342,-500.0,0.00035835,9]
[419676548,1775278274352,-500.0,0.00035835,9]
[419676549,1775278274362,-586.15863356,0.00035835,9]
[419676550,1775278274372,-1347.98,0.00035835,9]
[419676551,1775278274382,-500.0,0.00035835,9]
[419676552,1775278274392,-500.0,0.00035835,9]
[419676553,1775278274401,-500.0,0.00035835,9]
[419676554,1775278274411,-500.0,0.00035835,9]
[419676555,1775278274421,-1120.58,0.00035835,9]
[419676556,1775278274430,-1397.46,0.00035835,9]
[419676557,1775278274440,-233.00210216,0.00035835,9]
[419676558,1775278274450,-500.0,0.00035835,9]
[419676559,1775278274460,-500.0,0.00035835,9]
[419676560,1775278274470,-1227.05,0.00035835,9]
[419676561,1775278274480,-500.0,0.00035835,9]
[419676562,1775278274490,-500.0,0.00035835,9]
[419676563,1775278274500,-1603.45,0.00035835,9]
[419676564,1775278274510,-1251.23,0.00035835,9]
[419676565,1775278274519,-500.0,0.00035835,9]
[419676566,1775278274528,-658.95,0.00035835,9]
[419676567,1775278274538,-500.0,0.00035835,9]
[419676568,1775278274547,-966.96,0.00035835,9]
[419676569,1775278274558,-500.0,0.00035835,9]
[419676570,1775278274568,-500.0,0.00035835,9]
[419676571,1775278274577,-1865.55,0.00035835,9]
[419676572,1775278274587,-500.0,0.00035835,9]
[419676573,1775278274598,-500.0,0.00035835,9]
[419676574,1775278274608,-1190.3,0.00035835,9]
[419676575,1775278274619,-334.24573299,0.00035835,9]
[419676576,1775278274628,-468.35358721,0.00035835,9]
[419676577,1775278274638,-341.1103325,0.00035835,9]
[419676578,1775278274648,-1742.98,0.00035835,9]
[419676579,1775278274658,-500.0,0.00035835,9]
[419676580,1775278274668,-500.0,0.00035835,9]
[419676581,1775278274677,-2364.0,0.00035835,9]
[419676582,1775278274687,-500.0,0.00035835,9]
[419676583,1775278274697,-1291.04,0.00035835,9]
[419676584,1775278274707,-2287.39,0.00035835,9]
[419676585,1775278274716,-500.0,0.00035835,9]
[419676586,1775278274727,-1376.41,0.00035835,9]
[419676587,1775278274736,-500.0,0.00035835,9]
[419676588,1775278274746,-968.63,0.00035835,9]
[419676589,1775278274756,-653.2,0.00035835,9]
[419676590,1775278274766,-500.0,0.00035835,9]
[419676591,1775278274776,-500.0,0.00035835,9]
[419676592,1775278274786,-500.0,0.00035835,9]
[419676593,1775278274796,-850.48,0.00035835,9]
[419676594,1775278274806,-500.0,0.00035835,9]
[419676595,1775278274815,-500.0,0.00035835,9]
[419676596,1775278274826,-733.38,0.00035835,9]
[419676597,1775278274836,-1176.55,0.00035835,9]
[419676598,1775278274847,-1208.88,0.00035835,9]
[419676599,1775278274857,-3648.36,0.00035835,9]
[419676600,1775278274866,-500.0,0.00035835,9]
[419676601,1775278274877,-500.0,0.00035835,9]
[419676602,1775278274888,-1529.48,0.00035835,9]
[419676603,1775278274898,-500.0,0.00035835,9]
[419676604,1775278274907,-500.0,0.00035835,9]
[419676605,1775278274917,-500.0,0.00035835,9]
[419676606,1775278274927,-1454.11,0.00035835,9]
[419676607,1775278274936,-169.124376,0.00035835,9]
[419676608,1775278274946,-1718.88,0.00035835,9]
[419676609,1775278274956,-500.0,0.00035835,9]
[419676610,1775278274965,-599.39,0.00035835,9]
[419676611,1775278274976,-500.0,0.00035835,9]
[419676612,1775278274986,-500.0,0.00035835,9]
[419676613,1775278274995,-550.93,0.00035835,9]
[419676614,1775278275005,-500.0,0.00035835,9]
[419676615,1775278275014,-500.0,0.00035835,9]
[419676616,1775278275024,-548.33891043,0.00035835,9]
[419676617,1775278275033,-500.0,0.00035835,9]
[419676618,1775278275043,-500.0,0.00035835,9]
[419676619,1775278275052,-636.64,0.00035835,9]
[419676620,1775278275061,-500.0,0.00035835,9]
[419676621,1775278275071,-772.06,0.00035835,9]
[419676622,1775278275080,-500.0,0.00035835,9]
[419676623,1775278275090,-1214.7,0.00035835,9]
[419676624,1775278275099,-977.71,0.00035835,9]
[419676625,1775278275109,-500.0,0.00035835,9]
[419676626,1775278275118,-3100.6,0.00035835,9]
[419676627,1775278275128,-500.0,0.00035835,9]
[419676628,1775278275137,-500.0,0.00035835,9]
[419676629,1775278275147,-500.0,0.00035835,9]
[419676630,1775278275156,-500.0,0.00035835,9]
[419676631,1775278275165,-500.0,0.00035835,9]
[419676632,1775278275175,-592.18,0.00035835,7]
[419676633,1775278275184,-1633.36,0.00035835,9]
[419676634,1775278275193,-1376.23,0.00035835,9]
[419676635,1775278275203,-888.32,0.00035835,9]
[419676636,1775278275212,-500.0,0.00035835,9]
[419676637,1775278275222,-500.0,0.00035835,9]
[419676638,1775278275232,-500.0,0.00035835,9]
[419676639,1775278275242,-500.0,0.00035835,9]
[419676640,1775278275252,-500.0,0.00035835,9]
[419676641,1775278275262,-500.0,0.00035835,9]
[419676642,1775278275272,-3890.02,0.00035835,9]
[419676643,1775278275282,-500.0,0.00035835,9]
[419676644,1775278275292,-488.08216225,0.00035835,9]
[419676645,1775278275302,-500.0,0.00035835,9]
[419676646,1775278275311,-1610.53,0.00035835,9]
[419676647,1775278275321,-500.0,0.00035835,9]
[419676648,1775278275331,-500.0,0.00035835,9]
[419676649,1775278275340,-1272.26,0.00035835,9]
[419676650,1775278275351,-640.15,0.00035835,9]
[419676651,1775278275360,-3505.36,0.00035835,9]
[419676652,1775278275370,-1201.45,0.00035835,9]
[419676653,1775278275379,-500.0,0.00035835,9]
[419676654,1775278275389,-1192.72,0.00035835,9]
[419676655,1775278275398,-1899.03,0.00035835,9]
[419676656,1775278275407,-500.0,0.00035835,9]
[419676657,1775278275417,-500.0,0.00035835,9]
[419676658,1775278275427,-500.0,0.00035835,9]
[419676659,1775278275437,-500.0,0.00035835,9]
[419676660,1775278275446,-500.0,0.00035835,9]
[419676661,1775278275456,-985.82,0.00035835,9]
[419676662,1775278275465,-4974.5,0.00035835,9]
[419676663,1775278275475,-500.0,0.00035835,9]
[419676664,1775278275484,-640.51,0.00035835,9]
[419676665,1775278275494,-589.901202,0.00035835,7]
[419676666,1775278275503,-2193.09,0.00035835,9]
[419676667,1775278275512,-500.0,0.00035835,9]
[419676668,1775278275522,-278.64588495,0.00035835,9]
[419676669,1775278275531,-589.901202,0.00035835,7]
[419676670,1775278275541,-391.658756,0.00035835,7]
[419676671,1775278275550,-1630.69,0.00035835,9]
[419676672,1775278275560,-589.901202,0.00035835,7]
[419676673,1775278275569,-391.658756,0.00035835,7]
[419676674,1775278275579,-626.41,0.00035835,9]
[419676675,1775278275588,-589.901202,0.00035835,7]
[419676676,1775278275597,-973.64,0.00035835,9]
[419676677,1775278275606,-391.658756,0.00035835,7]
[419676678,1775278275615,-500.0,0.00035835,9]
[419676679,1775278275624,-799.63,0.00035835,9]
[419676680,1775278275634,-391.658756,0.00035835,7]
[419676681,1775278275643,-500.0,0.00035835,9]
[419676682,1775278275653,-500.0,0.00035835,9]
[419676683,1775278275662,-1704.35,0.00035835,4]
[419676684,1775278275671,-500.0,0.00035835,9]
[419676685,1775278275680,-500.0,0.00035835,9]
[419676686,1775278275690,-500.0,0.00035835,9]
[419676687,1775278275699,-731.71,0.00035835,9]
[419676688,1775278275708,-659.46,0.00035835,9]
[419676689,1775278275717,-1021.94,0.00035835,9]
[419676690,1775278275727,-500.0,0.00035835,9]
[419676691,1775278275736,-500.0,0.00035835,9]
[419676692,1775278275746,-738.43404568,0.00035835,9]
[419676693,1775278275755,-779.38,0.00035835,9]
[419676694,1775278275846,-500.0,0.00035835,9]
[419676695,1775278275856,-500.0,0.00035835,9]
[419676696,1775278275866,-500.0,0.00035835,9]
[419676697,1775278275875,-500.0,0.00035835,9]
[419676698,1775278275884,-622.73904045,0.00035835,9]
[419676699,1775278275893,-500.0,0.00035835,9]
[419676700,1775278275903,-11770.86,0.00035835,9]
[419676701,1775278275911,-500.0,0.00035835,9]
[419676702,1775278275921,-711.01,0.00035835,9]
[419676703,1775278275930,-918.91,0.00035835,9]
[419676704,1775278275939,-822.76,0.00035835,9]
[419676705,1775278275949,-500.0,0.00035835,9]
[419676706,1775278275958,-500.0,0.00035835,9]
[419676707,1775278275969,-1288.91,0.00035835,9]
[419676708,1775278275978,-2077.05,0.00035835,9]
[419676709,1775278275988,-778.41,0.00035835,9]
[419676710,1775278275998,-222.27233754,0.00035835,9]
[419676711,1775278276008,-500.0,0.00035835,9]
[419676712,1775278276018,-500.0,0.00035835,9]
[419676713,1775278276028,-500.0,0.00035835,9]
[419676714,1775278276039,-1126.98,0.00035835,9]
[419676715,1775278276048,-500.0,0.00035835,9]
[419676716,1775278276058,-500.0,0.00035835,9]
[419676717,1775278276067,-852.29,0.00035835,9]
[419676718,1775278276076,-597.75,0.00035835,9]
[419676719,1775278276086,-749.58,0.00035835,9]
[419676720,1775278276095,-1447.5,0.00035835,9]
[419676721,1775278276105,-500.0,0.00035835,9]
[419676722,1775278276114,-500.0,0.00035835,9]
[419676723,1775278276123,-500.0,0.00035835,9]
[419676724,1775278276133,-500.0,0.00035835,9]
[419676725,1775278276143,-500.0,0.00035835,9]
[419676726,1775278276153,-500.0,0.00035835,9]
[419676727,1775278276162,-13734.68,0.00035835,9]
[419676728,1775278276172,-500.0,0.00035835,9]
[419676729,1775278276182,-500.0,0.00035835,9]
[419676730,1775278276192,-1051.09,0.00035835,9]
[419676731,1775278276203,-500.0,0.00035835,9]
[419676732,1775278276212,-151.0,0.00035835,7]
[419676733,1775278276222,-1211.04,0.00035835,9]
[419676734,1775278276232,-252.976654,0.00035835,7]
[419676735,1775278276241,-562.37,0.00035835,9]
[419676736,1775278276251,-523.57949505,0.00035835,9]
[419676737,1775278276260,-500.0,0.00035835,9]
[419676738,1775278276271,-500.0,0.00035835,9]
[419676739,1775278276280,-756.26,0.00035835,9]
[419676740,1775278276290,-1590.77,0.00035835,9]
[419676741,1775278276299,-1274.82,0.00035835,9]
[419676742,1775278276308,-500.0,0.00035835,9]
[419676743,1775278276318,-963.97,0.00035835,9]
[419676744,1775278276327,-585.27,0.00035835,9]
[419676745,1775278276337,-500.0,0.00035835,9]
[419676746,1775278276346,-851.14,0.00035835,9]
[419676747,1775278276355,-1707.71,0.00035835,9]
[419676748,1775278276364,-502.69,0.00035835,9]
[419676749,1775278276375,-806.91,0.00035835,9]
[419676750,1775278276386,-412.00330373,0.00035835,9]
[419676751,1775278276395,-500.0,0.00035835,9]
[419676752,1775278276405,-500.0,0.00035835,9]
[419676753,1775278276415,-151.0,0.00035942,14]
[419676754,1775278276424,-278.00730373,0.00035942,14]
[419676755,1775278276433,-500.0,0.00035945,9]
[419676756,1775278276443,-500.0,0.00035945,9]
[419676757,1775278276452,-500.0,0.00035945,9]
[419676758,1775278276462,-501.24596364,0.00035945,9]
[419676759,1775278276471,-500.0,0.00035945,9]
[419676760,1775278276480,-500.0,0.00035945,9]
[419676761,1775278276490,-501.402771,0.00035945,9]
[419676762,1775278276499,-500.0,0.00035945,9]
[419676763,1775278276509,-500.0,0.00035945,9]
[419676764,1775278276518,-500.0,0.00035945,9]
[419676765,1775278276527,-500.0,0.00035945,9]
[419676766,1775278276536,-500.0,0.00035945,9]
[419676767,1775278276546,-500.0,0.00035945,9]
[419676768,1775278276555,-500.0,0.00035945,9]
[419676769,1775278276565,-500.0,0.00035945,9]
[419676770,1775278276575,-500.0,0.00035945,9]
[419676771,1775278276585,-1654.57,0.00035945,9]
[419676772,1775278276595,-631.05,0.00035945,9]
[419676773,1775278276605,-500.0,0.00035945,9]
[419676774,1775278276614,-500.0,0.00035945,9]
[419676775,1775278276624,-501.95636961,0.00035945,9]
[419676776,1775278276634,-500.0,0.00035945,9]
[419676777,1775278276645,-509.21064396,0.00035945,9]
[419676778,1775278276655,-606.54,0.00035945,9]
[419676779,1775278276664,-500.0,0.00035945,9]
[419676780,1775278276674,-500.0,0.00035945,9]
[419676781,1775278276685,-500.0,0.00035945,9]
[419676782,1775278276694,-607.85694317,0.00035945,9]
[419676783,1775278276704,-500.0,0.00035945,9]
[419676784,1775278276714,-500.0,0.00035945,9]
[419676785,1775278276724,-802.74,0.00035945,9]
[419676786,1775278276734,-500.0,0.00035945,2]
[419676787,1775278276744,-500.0,0.00035945,9]
[419676788,1775278276754,-500.0,0.00035945,9]
[419676789,1775278276764,-500.0,0.00035945,9]
[419676790,1775278276774,-1123.46,0.00035945,9]
[419676791,1775278276783,-500.0,0.00035945,9]
[419676792,1775278276794,-500.0,0.00035945,9]
[419676793,1775278276803,-500.0,0.00035945,9]
[419676794,1775278276813,-500.0,0.00035945,9]
[419676795,1775278276823,-500.0,0.00035945,9]
[419676796,1775278276833,-500.0,0.00035945,9]
[419676797,1775278276843,-213.43770541,0.00035945,9]
[419676798,1775278276852,-1338.82,0.00035945,9]
[419676799,1775278276862,-500.0,0.00035945,9]
[419676800,1775278276872,-500.0,0.00035945,9]
[419676801,1775278276882,-500.0,0.00035945,9]
[419676802,1775278276892,-447.02476075,0.00035945,9]
[419676803,1775278276902,-500.0,0.00035945,9]
[419676804,1775278276912,-500.0,0.00035945,9]
[419676805,1775278276923,-500.0,0.00035945,9]
[419676806,1775278276933,-500.0,0.00035945,9]
[419676807,1775278276943,-516.81905754,0.00035945,9]
[419676808,1775278276953,-500.0,0.00035945,9]
[419676809,1775278276964,-500.0,0.00035945,9]
[419676810,1775278276974,-1209.29,0.00035945,9]
[419676811,1775278276985,-500.0,0.00035945,9]
[419676812,1775278276995,-500.0,0.00035945,9]
[419676813,1775278277005,-539.73189312,0.00035945,9]
[419676814,1775278277016,-500.0,0.00035945,9]
[419676815,1775278277026,-500.0,0.00035945,9]
[419676816,1775278277036,-500.0,0.00035945,9]
[419676817,1775278277046,-990.0,0.00035945,9]
[419676818,1775278277056,-500.0,0.00035945,9]
[419676819,1775278277067,-526.33829791,0.00035945,9]
[419676820,1775278277077,-500.0,0.00035945,9]
[419676821,1775278277087,-500.0,0.00035945,9]
[419676822,1775278277097,-614.0701621,0.00035945,9]
[419676823,1775278277107,-500.0,0.00035945,9]
[419676824,1775278277117,-500.0,0.00035945,9]
[419676825,1775278277127,-500.0,0.00035945,9]
[419676826,1775278277137,-1194.92,0.00035945,9]
[419676827,1775278277147,-901.08,0.00035945,9]
[419676828,1775278277158,-500.0,0.00035945,9]
[419676829,1775278277169,-234.50508184,0.00035945,9]
[419676830,1775278277180,-500.0,0.00035945,9]
[419676831,1775278277191,-500.0,0.00035945,9]
[419676832,1775278277201,-500.0,0.00035945,9]
[419676833,1775278277212,-500.0,0.00035945,9]
[419676834,1775278277223,-500.0,0.00035945,9]
[419676835,1775278277233,-610.34,0.00035945,9]
[419676836,1775278277243,-248.39304746,0.00035945,9]
[419676837,1775278277253,-663.14,0.00035945,9]
[419676838,1775278277264,-240.44437785,0.00035945,9]
[419676839,1775278277274,-1294.2,0.00035945,9]
[419676840,1775278277284,-523.09,0.00035945,9]
[419676841,1775278277295,-500.0,0.00035945,9]
[419676842,1775278277305,-500.0,0.00035945,9]
[419676843,1775278277316,-246.8903209,0.00035945,9]
[419676844,1775278277326,-732.24,0.00035945,9]
[419676845,1775278277337,-500.0,0.00035945,9]
[419676846,1775278277347,-1263.62,0.00035945,9]
[419676847,1775278277356,-590.44,0.00035945,9]
[419676848,1775278277366,-500.0,0.00035945,9]
[419676849,1775278277376,-500.0,0.00035945,9]
[419676850,1775278277386,-500.0,0.00035945,9]
[419676851,1775278277397,-228.98,0.00035945,9]
[419676852,1775278277407,-500.0,0.00035945,9]
[419676853,1775278277417,-500.0,0.00035945,9]
[419676854,1775278277427,-507.69598061,0.00035945,9]
[419676855,1775278277438,-487.44834821,0.00035945,9]
[419676856,1775278277448,-500.0,0.00035945,9]
[419676857,1775278277458,-500.0,0.00035945,9]
[419676858,1775278277468,-500.0,0.00035945,9]
[419676859,1775278277480,-500.0,0.00035945,9]
[419676860,1775278277491,-1086.91961303,0.00035945,9]
[419676861,1775278278397,-912.76,0.00035616,9]
[419676862,1775278278412,-43.93038697,0.00035945,9]
[419676863,1775278278425,-500.0,0.00035945,9]
[419676864,1775278278440,-500.0,0.00035945,9]
[419676865,1775278278454,-45.31982771,0.00035945,9]
[419676866,1775278278471,-454.68017229,0.00035945,9]
[419676867,1775278278484,-500.0,0.00035945,9]
[419676868,1775278278498,-500.0,0.00035945,9]
[419676869,1775278278511,-20.37120762,0.00035945,9]
[419676870,1775278278528,-479.62879238,0.00035945,9]
[419676871,1775278278542,-500.0,0.00035945,9]
[419676872,1775278278556,-500.0,0.00035945,9]
[419676873,1775278278571,-500.0,0.00035945,9]
[419676874,1775278278584,-500.18,0.00035945,9]